fUST/lending_fUST_20240611
["ID","MTS","AMOUNT","RATE_DAILY","PERIOD"]
[328990485,1718044260301,-6.45040241,0.00019452,2]
[328990486,1718044260315,-493.54959759,0.00019452,2]
[328990487,1718044260325,-500.0,0.00019726,2]
[328990488,1718044260335,-500.0,0.00019726,2]
[328990489,1718044260345,-383.219039,0.00021095,2]
[328990490,1718044260355,-152.13937109,0.00021917,2]
[328990491,1718044260365,-530.99,0.00021917,2]
[328990492,1718044260375,-605.69,0.00021917,2]
[328990493,1718044260388,-500.0,0.00021917,2]
[328990494,1718044260398,-500.0,0.00021917,2]
[328990495,1718044260407,-611.18,0.00021917,2]
[328990496,1718044260417,-500.0,0.00021917,2]
[328990497,1718044260427,-722.97,0.00021917,2]
[328990498,1718044260437,-500.0,0.00021917,2]
[328990499,1718044260448,-308.01027872,0.00021917,2]
[328990500,1718044260458,-500.0,0.00021917,2]
[328990501,1718044260468,-692.78,0.00021917,2]
[328990502,1718044260477,-1138.21,0.00021917,2]
[328990503,1718044260487,-625.94,0.00021917,4]
[328990504,1718044260497,-2618.44,0.00021917,2]
[328990505,1718044260507,-500.0,0.00021917,2]
[328990506,1718044260516,-673.48,0.00021917,2]
[328990507,1718044260527,-1746.3,0.00021917,2]
[328990508,1718044260537,-901.3,0.00021917,2]
[328990509,1718044260547,-2206.1,0.00021917,2]
[328990510,1718044260557,-500.0,0.00021917,2]
[328990511,1718044260572,-1486.23,0.00021917,2]
[328990512,1718044260582,-5705.06,0.00021917,2]
[328990513,1718044260592,-1092.03,0.00021917,2]
[328990514,1718044260602,-500.0,0.00021917,2]
[328990515,1718044260611,-500.0,0.00021917,2]
[328990516,1718044260622,-3111.22,0.00021917,2]
[328990517,1718044260632,-500.0,0.00021917,2]
[328990518,1718044260643,-564.1,0.00021917,2]
[328990519,1718044260653,-531.28,0.00021917,2]
[328990520,1718044260664,-500.0,0.00021917,2]
[328990521,1718044260674,-500.0,0.00021917,2]
[328990522,1718044260684,-500.0,0.00021917,2]
[328990523,1718044260694,-500.0,0.00021917,2]
[328990524,1718044260704,-500.0,0.00021917,2]
[328990525,1718044260713,-500.0,0.00021917,2]
[328990526,1718044260723,-1214.42,0.00021917,2]
[328990527,1718044260733,-500.0,0.00021917,2]
[328990528,1718044260742,-500.0,0.00021917,2]
[328990529,1718044260752,-920.06,0.00021917,2]
[328990530,1718044260761,-234.42,0.00021917,2]
[328990531,1718044260771,-739.52,0.00021917,2]
[328990532,1718044260780,-646.48,0.00021917,2]
[328990533,1718044260790,-166.666666,0.00021918,2]
[328990534,1718044260800,-1000.0,0.00022,12]
[328990535,1718044260810,-212.0,0.00022,2]
[328990536,1718044260821,-235.4,0.00022041,5]
[328990537,1718044260832,-151.0,0.00022066,2]
[328990538,1718044260844,-519.02,0.00022191,2]
[328990539,1718044260854,-486.87,0.00022191,2]
[328990540,1718044260865,-500.0,0.00022191,2]
[328990541,1718044260880,-605.69,0.00022191,2]
[328990542,1718044260891,-500.0,0.00022191,2]
[328990543,1718044260901,-572.74,0.00022191,2]
[328990544,1718044260912,-611.18,0.00022191,2]
[328990545,1718044260923,-500.0,0.00022191,2]
[328990546,1718044260933,-722.97,0.00022191,2]
[328990547,1718044260945,-623.13,0.00022191,2]
[328990548,1718044260954,-500.0,0.00022191,2]
[328990549,1718044260965,-692.78,0.00022191,2]
[328990550,1718044260974,-1138.21,0.00022191,2]
[328990551,1718044260985,-625.94,0.00022191,4]
[328990552,1718044260995,-2618.44,0.00022191,2]
[328990553,1718044261085,-500.0,0.00022191,2]
[328990554,1718044261095,-673.48,0.00022191,2]
[328990555,1718044261106,-1746.3,0.00022191,2]
[328990556,1718044261116,-901.3,0.00022191,2]
[328990557,1718044261127,-2206.1,0.00022191,2]
[328990558,1718044261137,-500.0,0.00022191,2]
[328990559,1718044261147,-1486.23,0.00022191,2]
[328990560,1718044261157,-5705.06,0.00022191,2]
[328990561,1718044261169,-1092.03,0.00022191,2]
[328990562,1718044261179,-500.0,0.00022191,2]
[328990563,1718044261189,-500.0,0.00022191,2]
[328990564,1718044261200,-3111.22,0.00022191,2]
[328990565,1718044261211,-564.1,0.00022191,2]
[328990566,1718044261222,-500.0,0.00022191,2]
[328990567,1718044261232,-531.28,0.00022191,2]
[328990568,1718044261243,-500.0,0.00022191,2]
[328990569,1718044261254,-500.0,0.00022191,2]
[328990570,1718044261264,-500.0,0.00022191,2]
[328990571,1718044261276,-500.0,0.00022191,2]
[328990572,1718044261286,-472.97918535,0.00022191,2]
[328990573,1718044261301,-27.02081465,0.00022191,2]
[328990574,1718044261313,-159.77,0.00022191,2]
[328990575,1718044261324,-1214.42,0.00022191,2]
[328990576,1718044261335,-500.0,0.00022191,2]
[328990577,1718044261345,-500.0,0.00022191,2]
[328990578,1718044261355,-920.06,0.00022191,2]
[328990579,1718044261365,-739.52,0.00022191,2]
[328990580,1718044261374,-383.219039,0.00022191,2]
[328990581,1718044261384,-646.48,0.00022191,2]
[328990582,1718044261396,-383.219039,0.00022191,2]
[328990583,1718044261405,-212.0,0.00022192,2]
[328990584,1718044261415,-299.0,0.00022242,5]
[328990585,1718044261425,-216.22971867,0.000223,15]
[328990586,1718044261434,-25087.73963227,0.000223,3]
[328990587,1718044261447,-8179.77582509,0.000223,3]
[328990588,1718044261459,-118142.24988375,0.000223,3]
[328990589,1718044261469,-383.219039,0.000223,2]
[328990590,1718044261480,-383.219039,0.000223,2]
[328990591,1718044261490,-166.666666,0.00022431,2]
[328990592,1718044261499,-519.02,0.00022465,2]
[328990593,1718044261510,-500.0,0.00022465,2]
[328990594,1718044261520,-605.69,0.00022465,2]
[328990595,1718044261530,-500.0,0.00022465,2]
[328990596,1718044261539,-611.18,0.00022465,2]
[328990597,1718044261548,-500.0,0.00022465,2]
[328990598,1718044261558,-722.97,0.00022465,2]
[328990599,1718044261570,-500.0,0.00022465,2]
[328990600,1718044261580,-692.78,0.00022465,2]
[328990601,1718044261589,-1138.21,0.00022465,2]
[328990602,1718044261599,-625.94,0.00022465,4]
[328990603,1718044261609,-2618.44,0.00022465,2]
[328990604,1718044261619,-500.0,0.00022465,2]
[328990605,1718044261629,-673.48,0.00022465,2]
[328990606,1718044261641,-1746.3,0.00022465,2]
[328990607,1718044261651,-901.3,0.00022465,2]
[328990608,1718044261662,-151.0,0.00022465,2]
[328990609,1718044261672,-2206.1,0.00022465,2]
[328990610,1718044261683,-500.0,0.00022465,2]
[328990611,1718044261693,-1486.23,0.00022465,2]
[328990612,1718044261704,-151.0,0.00022465,2]
[328990613,1718044261713,-5705.06,0.00022465,2]
[328990614,1718044261723,-1092.03,0.00022465,2]
[328990615,1718044261733,-500.0,0.00022465,2]
[328990616,1718044261743,-500.0,0.00022465,2]
[328990617,1718044261753,-3111.22,0.00022465,2]
[328990618,1718044261764,-564.1,0.00022465,2]
[328990619,1718044261774,-477.42,0.00022465,2]
[328990620,1718044261785,-531.28,0.00022465,2]
[328990621,1718044261796,-500.0,0.00022465,2]
[328990622,1718044261807,-500.0,0.00022465,2]
[328990623,1718044261820,-500.0,0.00022465,2]
[328990624,1718044261831,-500.0,0.00022465,2]
[328990625,1718044261841,-500.0,0.00022465,2]
[328990626,1718044261851,-1214.42,0.00022465,2]
[328990627,1718044261862,-606.03,0.00022465,2]
[328990628,1718044261877,-500.0,0.00022465,2]
[328990629,1718044261888,-920.06,0.00022465,2]
[328990630,1718044261898,-739.52,0.00022465,2]
[328990631,1718044261910,-646.48,0.00022465,2]
[328990632,1718044261931,-4239.03743968,0.00022478,2]
[328990633,1718044261945,-154.0022942,0.00022511,3]
[328990634,1718044261956,-153.0,0.00022658,2]
[328990635,1718044261966,-254.0,0.000227,2]
[328990636,1718044261976,-235.4,0.00022715,5]
[328990637,1718044261987,-225.1695884,0.00022739,2]
[328990638,1718044261997,-13481.93972849,0.00022739,2]
[328990639,1718044262008,-519.02,0.00022739,2]
[328990640,1718044262019,-500.0,0.00022739,2]
[328990641,1718044262030,-605.69,0.00022739,2]
[328990642,1718044262041,-500.0,0.00022739,2]
[328990643,1718044262052,-151.0,0.00022739,2]
[328990644,1718044262062,-611.18,0.00022739,2]
[328990645,1718044262075,-500.0,0.00022739,2]
[328990646,1718044262085,-255.385865,0.00022739,2]
[328990647,1718044262096,-722.97,0.00022739,2]
[328990648,1718044262108,-500.0,0.00022739,2]
[328990649,1718044262119,-159.558985,0.00022739,2]
[328990650,1718044262129,-159.558985,0.00022739,2]
[328990651,1718044262140,-151.0,0.00022739,2]
[328990652,1718044262151,-151.0,0.00022739,2]
[328990653,1718044262162,-692.78,0.00022739,2]
[328990654,1718044262172,-1138.21,0.00022739,2]
[328990655,1718044262183,-173.564485,0.00022739,2]
[328990656,1718044262193,-173.564485,0.00022739,2]
[328990657,1718044262204,-625.94,0.00022739,4]
[328990658,1718044262216,-2618.44,0.00022739,2]
[328990659,1718044262226,-500.0,0.00022739,2]
[328990660,1718044262237,-673.48,0.00022739,2]
[328990661,1718044262247,-1746.3,0.00022739,2]
[328990662,1718044262258,-901.3,0.00022739,2]
[328990663,1718044262268,-2206.1,0.00022739,2]
[328990664,1718044262279,-500.0,0.00022739,2]
[328990665,1718044262289,-1486.23,0.00022739,2]
[328990666,1718044262300,-5705.06,0.00022739,2]
[328990667,1718044262311,-1092.03,0.00022739,2]
[328990668,1718044262325,-500.0,0.00022739,2]
[328990669,1718044262336,-500.0,0.00022739,2]
[328990670,1718044262346,-3111.22,0.00022739,2]
[328990671,1718044262357,-564.1,0.00022739,2]
[328990672,1718044262367,-531.28,0.00022739,2]
[328990673,1718044262378,-222.98,0.00022739,2]
[328990674,1718044262393,-500.0,0.00022739,2]
[328990675,1718044262404,-500.0,0.00022739,2]
[328990676,1718044262415,-500.0,0.00022739,2]
[328990677,1718044262426,-500.0,0.00022739,2]
[328990678,1718044262437,-1214.42,0.00022739,2]
[328990679,1718044262448,-500.0,0.00022739,2]
[328990680,1718044262459,-920.06,0.00022739,2]
[328990681,1718044262469,-739.52,0.00022739,2]
[328990682,1718044262482,-646.48,0.00022739,2]
[328990683,1718044262492,-847.123074,0.00022849,2]
[328990684,1718044262502,-169.352305,0.00022849,2]
[328990685,1718044262513,-974.075595,0.00022849,2]
[328990686,1718044262526,-166.666666,0.00022944,2]
[328990687,1718044262538,-299.0,0.00022992,5]
[328990688,1718044262549,-155.01240099,0.00023,2]
[328990689,1718044262560,-207.16914811,0.00023,2]
[328990690,1718044262575,-5039.13711336,0.00023,2]
[328990691,1718044262585,-155.74679865,0.00023,2]
[328990692,1718044262595,-1000.0,0.00023,7]
[328990693,1718044262605,-600.1430247,0.00023,2]
[328990694,1718044262614,-519.02,0.00023013,2]
[328990695,1718044262624,-500.0,0.00023013,2]
[328990696,1718044262633,-605.69,0.00023013,2]
[328990697,1718044262644,-500.0,0.00023013,2]
[328990698,1718044262654,-611.18,0.00023013,2]
[328990699,1718044262664,-500.0,0.00023013,2]
[328990700,1718044262673,-722.97,0.00023013,2]
[328990701,1718044262684,-500.0,0.00023013,2]
[328990702,1718044262694,-692.78,0.00023013,2]
[328990703,1718044262705,-1138.21,0.00023013,2]
[328990704,1718044262715,-625.94,0.00023013,4]
[328990705,1718044262725,-2618.44,0.00023013,2]
[328990706,1718044262846,-500.0,0.00023013,2]
[328990707,1718044262858,-673.48,0.00023013,2]
[328990708,1718044262871,-1746.3,0.00023013,2]
[328990709,1718044262881,-901.3,0.00023013,2]
[328990710,1718044262892,-2206.1,0.00023013,2]
[328990711,1718044262902,-288.32,0.00023013,2]
[328990712,1718044262914,-1486.23,0.00023013,2]
[328990713,1718044262925,-5705.06,0.00023013,2]
[328990714,1718044262935,-1092.03,0.00023013,2]
[328990715,1718044262946,-500.0,0.00023013,2]
[328990716,1718044262956,-500.0,0.00023013,2]
[328990717,1718044262966,-3111.22,0.00023013,2]
[328990718,1718044262976,-564.1,0.00023013,2]
[328990719,1718044262987,-531.28,0.00023013,2]
[328990720,1718044262997,-500.0,0.00023013,2]
[328990721,1718044263008,-500.0,0.00023013,2]
[328990722,1718044263019,-500.0,0.00023013,2]
[328990723,1718044263029,-500.0,0.00023013,2]
[328990724,1718044263040,-1214.42,0.00023013,2]
[328990725,1718044263050,-449.6864596,0.00023013,2]
[328990726,1718044263061,-920.06,0.00023013,2]
[328990727,1718044263074,-739.52,0.00023013,2]
[328990728,1718044263083,-646.48,0.00023013,2]
[328990729,1718044263092,-212.0,0.00023014,2]
[328990730,1718044263102,-847.123074,0.00023134,2]
[328990731,1718044263111,-974.075595,0.00023134,2]
[328990732,1718044263121,-621.39285043,0.00023154,2]
[328990733,1718044263131,-153.0,0.00023206,2]
[328990734,1718044263141,-153.0,0.00023206,2]
[328990735,1718044263151,-190.6822986,0.00023206,2]
[328990736,1718044263161,-153.0,0.00023219,2]
[328990737,1718044263171,-306.0,0.00023219,2]
[328990738,1718044263181,-361.57575,0.00023219,2]
[328990739,1718044263190,-306.0,0.00023219,2]
[328990740,1718044263201,-153.0,0.00023219,2]
[328990741,1718044263211,-151.0,0.00023287,2]
[328990742,1718044263220,-519.02,0.00023287,2]
[328990743,1718044263230,-500.0,0.00023287,2]
[328990744,1718044263240,-605.69,0.00023287,2]
[328990745,1718044263249,-500.0,0.00023287,2]
[328990746,1718044263259,-611.18,0.00023287,2]
[328990747,1718044263269,-500.0,0.00023287,2]
[328990748,1718044263279,-722.97,0.00023287,2]
[328990749,1718044263290,-500.0,0.00023287,2]
[328990750,1718044263300,-692.78,0.00023287,2]
[328990751,1718044263311,-1138.21,0.00023287,2]
[328990752,1718044263325,-625.94,0.00023287,4]
[328990753,1718044263335,-2618.44,0.00023287,2]
[328990754,1718044263345,-500.0,0.00023287,2]
[328990755,1718044263355,-673.48,0.00023287,2]
[328990756,1718044263366,-1746.3,0.00023287,2]
[328990757,1718044263376,-901.3,0.00023287,2]
[328990758,1718044263388,-1415.58784131,0.00023287,2]
[328990759,1718044263490,-790.51215869,0.00023287,2]
[328990760,1718044263504,-1486.23,0.00023287,2]
[328990761,1718044263525,-5705.06,0.00023287,2]
[328990762,1718044263543,-1092.03,0.00023287,2]
[328990763,1718044263560,-500.0,0.00023287,2]
[328990764,1718044263582,-500.0,0.00023287,2]
[328990765,1718044263600,-3111.22,0.00023287,2]
[328990766,1718044263619,-564.1,0.00023287,2]
[328990767,1718044263636,-486.44784131,0.00023287,2]
[328990768,1718044263934,-44.83215869,0.00023287,2]
[328990769,1718044263950,-500.0,0.00023287,2]
[328990770,1718044263964,-500.0,0.00023287,2]
[328990771,1718044263977,-500.0,0.00023287,2]
[328990772,1718044263991,-500.0,0.00023287,2]
[328990773,1718044264006,-1214.42,0.00023287,2]
[328990774,1718044264020,-920.06,0.00023287,2]
[328990775,1718044264035,-739.52,0.00023287,2]
[328990776,1718044264048,-383.219039,0.00023287,2]
[328990777,1718044264062,-646.48,0.00023287,2]
[328990778,1718044264078,-383.219039,0.00023287,2]
[328990779,1718044264091,-235.4,0.00023389,7]
[328990780,1718044264102,-847.123074,0.0002342,2]
[328990781,1718044264112,-974.075595,0.0002342,2]
[328990782,1718044264122,-166.666666,0.00023456,2]
[328990783,1718044264133,-519.02,0.00023561,2]
[328990784,1718044264143,-500.0,0.00023561,2]
[328990785,1718044264153,-605.69,0.00023561,2]
[328990786,1718044264164,-500.0,0.00023561,2]
[328990787,1718044264173,-611.18,0.00023561,2]
[328990788,1718044264183,-500.0,0.00023561,2]
[328990789,1718044264193,-722.97,0.00023561,2]
[328990790,1718044264204,-500.0,0.00023561,2]
[328990791,1718044264214,-692.78,0.00023561,2]
[328990792,1718044264223,-1138.21,0.00023561,2]
[328990793,1718044264233,-625.94,0.00023561,4]
[328990794,1718044264243,-2618.44,0.00023561,2]
[328990795,1718044264253,-417.57,0.00023561,2]
[328990796,1718044264263,-673.48,0.00023561,2]
[328990797,1718044264272,-1000.74988488,0.00023561,2]
[328990798,1718044264285,-745.55011512,0.00023561,2]
[328990799,1718044264295,-901.3,0.00023561,2]
[328990800,1718044264305,-151.0,0.00023561,2]
[328990801,1718044264316,-570.99439534,0.00023561,2]
[328990802,1718044264345,-155.01240099,0.00019177,2]
[328990803,1718044264355,-1635.10560466,0.00023561,2]
[328990804,1718044264365,-298.81605716,0.00023561,2]
[328990805,1718044264378,-1187.41394284,0.00023561,2]
[328990806,1718044264392,-151.0,0.00023561,2]
[328990807,1718044264402,-5705.06,0.00023561,2]
[328990808,1718044264412,-1092.03,0.00023561,2]
[328990809,1718044264422,-500.0,0.00023561,2]
[328990810,1718044264433,-500.0,0.00023561,2]
[328990811,1718044264443,-3111.22,0.00023561,2]
[328990812,1718044264453,-564.1,0.00023561,2]
[328990813,1718044264685,-531.28,0.00023561,2]
[328990814,1718044264696,-500.0,0.00023561,2]
[328990815,1718044264707,-500.0,0.00023561,2]
[328990816,1718044264717,-500.0,0.00023561,2]
[328990817,1718044264728,-500.0,0.00023561,2]
[328990818,1718044264739,-1214.42,0.00023561,2]
[328990819,1718044264750,-920.06,0.00023561,2]
[328990820,1718044264760,-739.52,0.00023561,2]
[328990821,1718044264770,-646.48,0.00023561,2]
[328990822,1718044264780,-823.0,0.00023635,2]
[328990823,1718044264790,-847.123074,0.00023705,2]
[328990824,1718044264801,-974.075595,0.00023705,2]
[328990825,1718044264811,-151.0,0.00023707,2]
[328990826,1718044264826,-151.0,0.00023707,2]
[328990827,1718044264837,-299.0,0.00023741,7]
[328990828,1718044264847,-32642.21738816,0.000238,2]
[328990829,1718044264859,-3740.0,0.000238,2]
[328990830,1718044264875,-3497.5,0.000238,2]
[328990831,1718044264887,-4747.24006261,0.000238,2]
[328990832,1718044264897,-2461.5371781,0.000238,2]
[328990833,1718044264933,-441.16585158,0.00019178,2]
[328990834,1718044264946,-58.83414842,0.00019178,2]
[328990835,1718044264957,-153.0,0.0002006,2]
[328990836,1718044264967,-2030.38585142,0.000238,2]
[328990857,1718044871146,155.01085076,9.999e-05,2]
[328990858,1718044934564,155.01240099,9.999e-05,2]
[328990859,1718045023912,155.08139107,9.999e-05,2]
[328990860,1718045031554,259.45069077,9.999e-05,2]
[328990861,1718045050437,155.26556741,9.999e-05,2]
[328990862,1718045080379,236.98052675,9.999e-05,2]
[328990868,1718045379300,292.39507624,0.00014306,2]
[328990912,1718045433806,-155.01550155,0.00017895,2]
[328990914,1718045433816,-1821.20639829,0.00017895,4]
[328990916,1718045433829,-1298.8901174,0.00017895,4]
[328990918,1718045433839,-39444.20157102,0.00017895,2]
[328990919,1718045433849,-281.84337151,0.00017896,2]
[328990920,1718045433859,-222.76516151,0.00017896,2]
[328990928,1718045434010,-10488.5511856,0.00017898,2]
[328990929,1718045434020,-300.0,0.00017997,2]
[328990930,1718045434030,-300.0,0.00017997,2]
[328990931,1718045434041,-1058.866801,0.00018,2]
[328990932,1718045434050,-606.49853317,0.000185,2]
[328990933,1718045434060,-1164.89213222,0.000189,2]
[328990950,1718045440298,-633.69415174,0.000189,2]
[328990953,1718045440311,-845.94938209,0.000189,2]
[328990954,1718045440321,-505.56482559,0.00018976,2]
[328990955,1718045440334,-163.05236711,0.00019,2]
[328990956,1718045440346,-3028.1285066,0.00019,2]
[328990957,1718045440357,-552.89399516,0.00019073,2]
[328990958,1718045440369,-2303.130953,0.00019074,2]
[328990959,1718045440382,-460.58928836,0.00019074,2]
[328990960,1718045440394,-632.62413596,0.00019074,2]
[328990962,1718045440405,-164.63552504,0.00019074,2]
[328990963,1718045440416,-687.55415781,0.00019075,2]
[328990964,1718045440428,-920.04061058,0.00019075,2]
[328990965,1718045440442,-1373.46285405,0.00019075,2]
[328990966,1718045440455,-1784.75558405,0.00019075,2]
[328990967,1718045440468,-9453.21532342,0.00019075,2]
[328990968,1718045440478,-44255.3051112,0.00019076,2]
[328990969,1718045440489,-259.0,0.00019168,3]
[328990970,1718045440499,-215.83,0.00019168,3]
[328990971,1718045440510,-647.51,0.00019168,3]
[328990972,1718045440520,-713.31963723,0.00019176,2]
[328990973,1718045440531,-274.99910967,0.00019176,2]
[328990974,1718045440542,-943.58228779,0.00019178,15]
[328990975,1718045440553,-500.0,0.00019178,2]
[328990976,1718045440563,-500.0,0.00019178,2]
[328990977,1718045440573,-500.0,0.00019178,2]
[328990978,1718045440584,-500.0,0.00019178,2]
[328990979,1718045440594,-500.0,0.00019178,2]
[328990980,1718045440604,-500.0,0.00019178,2]
[328990981,1718045440614,-164.12035405,0.00019178,2]
[328990982,1718045440625,-500.0,0.00019178,2]
[328990983,1718045440635,-500.0,0.00019178,2]
[328990984,1718045440648,-500.0,0.00019178,2]
[328990985,1718045440659,-581.33844449,0.00019178,2]
[328990986,1718045440670,-500.0,0.00019178,2]
[328990987,1718045440681,-500.0,0.00019178,2]
[328990988,1718045440692,-500.0,0.00019178,2]
[328990989,1718045440703,-500.0,0.00019178,2]
[328990990,1718045440714,-500.0,0.00019178,2]
[328990991,1718045440724,-500.0,0.00019178,2]
[328990992,1718045440735,-500.0,0.00019178,2]
[328990993,1718045440746,-500.0,0.00019178,2]
[328990994,1718045440755,-500.0,0.00019178,2]
[328990995,1718045440765,-500.0,0.00019178,2]
[328990996,1718045440775,-500.0,0.00019178,2]
[328990997,1718045440785,-500.0,0.00019178,2]
[328990998,1718045440799,-500.0,0.00019178,2]
[328990999,1718045440809,-500.0,0.00019178,2]
[328991000,1718045440820,-500.0,0.00019178,2]
[328991001,1718045440831,-500.0,0.00019178,2]
[328991002,1718045440841,-500.0,0.00019178,2]
[328991003,1718045440852,-500.0,0.00019178,2]
[328991004,1718045440863,-500.0,0.00019178,2]
[328991005,1718045440874,-500.0,0.00019178,2]
[328991006,1718045440885,-500.0,0.00019178,2]
[328991007,1718045440898,-500.0,0.00019178,2]
[328991008,1718045440909,-345.9023643,0.00019178,2]
[328991009,1718045440919,-500.0,0.00019178,2]
[328991010,1718045440929,-500.0,0.00019178,2]
[328991011,1718045440940,-500.0,0.00019178,2]
[328991012,1718045440950,-500.0,0.00019178,2]
[328991013,1718045440961,-500.0,0.00019178,2]
[328991014,1718045440973,-500.0,0.00019178,2]
[328991015,1718045440984,-500.0,0.00019178,2]
[328991016,1718045440995,-500.0,0.00019178,2]
[328991017,1718045441005,-500.0,0.00019178,2]
[328991018,1718045441015,-500.0,0.00019178,2]
[328991019,1718045441026,-507.20198532,0.00019178,2]
[328991020,1718045441036,-500.0,0.00019178,2]
[328991021,1718045441047,-500.0,0.00019178,2]
[328991022,1718045441057,-500.0,0.00019178,2]
[328991023,1718045441068,-500.0,0.00019178,2]
[328991024,1718045441079,-525.26787255,0.00019178,2]
[328991025,1718045441089,-500.0,0.00019178,2]
[328991026,1718045441099,-467.59560507,0.00019178,2]
[328991027,1718045441109,-500.0,0.00019178,2]
[328991028,1718045441120,-500.0,0.00019178,2]
[328991029,1718045441130,-500.0,0.00019178,2]
[328991030,1718045441140,-503.9662197,0.00019178,2]
[328991031,1718045441153,-500.0,0.00019178,2]
[328991032,1718045441163,-500.0,0.00019178,2]
[328991033,1718045441174,-500.0,0.00019178,2]
[328991034,1718045441184,-500.0,0.00019178,2]
[328991035,1718045441195,-628.39,0.00019178,2]
[328991036,1718045441204,-500.0,0.00019178,2]
[328991037,1718045441215,-500.0,0.00019178,2]
[328991038,1718045441225,-500.0,0.00019178,2]
[328991039,1718045441235,-500.0,0.00019178,2]
[328991040,1718045441246,-521.1549641,0.00019178,2]
[328991041,1718045441256,-500.0,0.00019178,2]
[328991042,1718045441267,-500.0,0.00019178,2]
[328991043,1718045441277,-500.0,0.00019178,2]
[328991044,1718045441292,-500.0,0.00019178,2]
[328991045,1718045441302,-506.7285287,0.00019178,2]
[328991046,1718045441312,-428.79543305,0.00019178,2]
[328991047,1718045441323,-500.0,0.00019178,2]
[328991048,1718045441333,-500.0,0.00019178,2]
[328991049,1718045441344,-500.0,0.00019178,2]
[328991050,1718045441354,-500.0,0.00019178,2]
[328991051,1718045441367,-175.68363452,0.00019178,2]
[328991052,1718045441378,-500.0,0.00019178,2]
[328991053,1718045441388,-500.0,0.00019178,2]
[328991054,1718045441401,-500.0,0.00019178,2]
[328991055,1718045441412,-500.0,0.00019178,2]
[328991056,1718045441423,-500.0,0.00019178,2]
[328991057,1718045441433,-500.0,0.00019178,2]
[328991058,1718045441443,-500.0,0.00019178,2]
[328991059,1718045441454,-500.0,0.00019178,2]
[328991060,1718045441464,-500.0,0.00019178,2]
[328991061,1718045441474,-500.0,0.00019178,2]
[328991062,1718045441484,-500.0,0.00019178,2]
[328991063,1718045441494,-500.0,0.00019178,2]
[328991064,1718045441504,-505.85074964,0.00019178,2]
[328991065,1718045441514,-641.99570024,0.00019178,2]
[328991066,1718045441525,-500.0,0.00019178,2]
[328991067,1718045441535,-523.13248299,0.00019178,2]
[328991068,1718045441547,-500.0,0.00019178,2]
[328991069,1718045441557,-500.0,0.00019178,2]
[328991070,1718045441568,-500.0,0.00019178,2]
[328991071,1718045441578,-500.0,0.00019178,2]
[328991072,1718045441588,-500.0,0.00019178,2]
[328991073,1718045441599,-500.0,0.00019178,2]
[328991074,1718045441609,-226.81729045,0.00019178,2]
[328991075,1718045441619,-500.0,0.00019178,2]
[328991076,1718045441629,-500.0,0.00019178,2]
[328991077,1718045441640,-338.69558664,0.00019178,2]
[328991078,1718045441653,-281.60525843,0.00019178,2]
[328991079,1718045441663,-500.0,0.00019178,2]
[328991080,1718045441673,-500.0,0.00019178,2]
[328991081,1718045441684,-523.1117152,0.00019178,2]